[Event "Israel Youth-ch U12 2025"]
[Site "Rishon Le Zion"]
[Date "2025.04.07"]
[Round "4.3"]
[White "Triger, Eitan"]
[Black "Hochman, Gur"]
[Result "1/2-1/2"]
[Annotator "NA RC"]
[ECO "C01"]
[WhiteElo "1978"]
[BlackElo "1908"]
[PlyCount "76"]
[EventDate "2025.04.03"]
[EventType "swiss"]
[EventCountry "ISR"]
[SourceTitle "playchess.com"]
[Source "ChessBase"]
[SourceQuality "1"]
[TimeControl "5400+30"]

1. e4 {[%emt 0:00:25]} e6 {[%emt 0:00:05]} 2. d4 {[%emt 0:00:10]} d5 {[%emt 0:00:06]} 3. Nc3 {[%emt 0:00:06]} Bb4 {[%emt 0:00:06]} 4. exd5 {[%emt 0:00:04]} exd5 {[%emt 0:00:07]} 5. Bd3 {[%emt 0:00:46]} Nc6 {[%emt 0:00:08]} 6. a3 {[%emt 0:00:04]} Bxc3+ {[%emt 0:00:07]} 7. bxc3 {[%emt 0:00:05]} Qf6 {[%emt 0:01:22]} 8. Qf3 {[%emt 0:01:05]} Qxf3 {[%emt 0:00:23]} 9. Nxf3 {[%emt 0:00:05]} Bd7 {[%emt 0:00:48]} 10. O-O {[%emt 0:01:31]} f6 {[%emt 0:01:08]} 11. Bf4 {[%emt 0:04:57]} O-O-O {[%emt 0:00:15]} 12. h3 {[%emt 0:00:12]} Nge7 {[%emt 0:01:58]} 13. Rfe1 {[%emt 0:03:39]} g5 {[%emt 0:04:24]} 14. Bd2 {[%emt 0:05:47]} Nf5 {[%emt 0:03:06]} 15. Nh2 {[%emt 0:14:08]} h5 {[%emt 0:08:00]} 16. g3 {[%emt 0:00:05]} Nd6 {[%emt 0:10:45]} 17. Kg2 {[%emt 0:01:11]} Na5 {[%emt 0:02:36]} 18. Nf1 {[%emt 0:13:11]} Nac4 {[%emt 0:04:01]} 19. Re2 {[%emt 0:00:41]} Rde8 {[%emt 0:07:11]} 20. Ne3 {[%emt 0:03:18]} Nxe3+ {[%emt 0:05:16]} 21. Bxe3 {[%emt 0:01:56]} Ne4 {[%emt 0:03:24]} 22. c4 {[%emt 0:06:05]} Nc3 {[%emt 0:04:03]} 23. Ree1 {[%emt 0:05:10]} dxc4 {[%emt 0:01:09]} 24. Bxc4 {[%emt 0:01:34]} Bc6+ {[%emt 0:00:30]} 25. Kh2 {[%emt 0:01:40]} Bf3 {[%emt 0:06:16]} 26. a4 {[%emt 0:04:53]} Nd5 {[%emt 0:01:50]} 27. Bd2 {[%emt 0:00:58]} c6 {[%emt 0:03:25]} 28. Bd3 {[%emt 0:01:08]} h4 {[%emt 0:02:54]} 29. c4 {[%emt 0:00:36]} Nc7 {[%emt 0:02:12]} 30. g4 {[%emt 0:01:27]} Kd8 {[%emt 0:02:04]} 31. a5 {[%emt 0:10:49]} Rxe1 {[%emt 0:01:42]} 32. Rxe1 {[%emt 0:00:26]} Re8 {[%emt 0:00:31]} 33. Rb1 {[%emt 0:01:18]} Kc8 {[%emt 0:02:40]} 34. Rb4 {[%emt 0:02:14]} Be4 {[%emt 0:01:56]} 35. Bf1 {[%emt 0:01:02]} Ne6 {[%emt 0:03:10]} 36. Be3 {[%emt 0:00:03]} Rd8 {[%emt 0:01:00]} 37. c5 {[%emt 0:02:34]} Nc7 {[%emt 0:00:20]} 38. Rb2 {[%emt 0:00:13]} a6 {[%emt 0:00:26]} 1/2-1/2

[Event "Israel Youth-ch U12 2025"]
[Site "Rishon Le Zion"]
[Date "2025.04.07"]
[Round "4.4"]
[White "Zakin, Lior"]
[Black "Reizer, Omer"]
[Result "1-0"]
[Annotator "NA COMBH"]
[ECO "C63"]
[WhiteElo "1819"]
[BlackElo "1455"]
[PlyCount "97"]
[EventDate "2025.04.03"]
[EventType "swiss"]
[EventCountry "ISR"]
[SourceTitle "playchess.com"]
[Source "ChessBase"]
[SourceQuality "1"]
[TimeControl "5400+30"]

1. e4 {[%emt 0:00:48]} e5 {[%emt 0:00:10]} 2. Nf3 {[%emt 0:00:21]} Nc6 {[%emt 0:00:07]} 3. Bb5 {[%emt 0:00:04]} f5 {[%emt 0:00:21]} 4. Nc3 {[%emt 0:00:19]} Nf6 {[%emt 0:02:43]} 5. d3 {[%emt 0:00:45]} fxe4 {[%emt 0:00:44]} 6. dxe4 {[%emt 0:00:07]} d6 {[%emt 0:00:35]} 7. h3 {[%emt 0:01:55]} Be6 {[%emt 0:01:43]} 8. Be3 {[%emt 0:02:55]} Qd7 {[%emt 0:01:33]} 9. Qd3 {[%emt 0:04:06]} Be7 {[%emt 0:03:25]} 10. Ng5 {[%emt 0:01:20]} Bg8 {[%emt 0:05:33]} 11. Nd5 {[%emt 0:03:37]} h6 {[%emt 0:05:36]} 12. Nxe7 {[%emt 0:00:11]} Kxe7 {[%emt 0:02:50]} 13. Nf3 {[%emt 0:00:10]} Nb4 {[%emt 0:01:32]} 14. Bxd7 {[%emt 0:01:11]} Nxd3+ {[%emt 0:00:20]} 15. cxd3 {[%emt 0:00:02]} Kxd7 {[%emt 0:00:20]} 16. Ke2 {[%emt 0:01:05]} Bf7 {[%emt 0:01:46]} 17. Nh4 {[%emt 0:03:09]} g5 {[%emt 0:03:14]} 18. Nf5 {[%emt 0:01:10]} Bg6 {[%emt 0:01:05]} 19. Nxh6 {[%emt 0:05:26]} Nxe4 {[%emt 0:03:31]} 20. Ng4 {[%emt 0:00:17]} Nc5 {[%emt 0:02:29]} 21. Bxc5 {[%emt 0:00:03]} dxc5 {[%emt 0:00:44]} 22. Nxe5+ {[%emt 0:00:04]} Kd6 {[%emt 0:00:23]} 23. Nxg6 {[%emt 0:00:25]} Rhg8 {[%emt 0:00:23]} 24. Nf4 {[%emt 0:00:27]} gxf4 {[%emt 0:01:41]} 25. Kf3 {[%emt 0:00:12]} Kd5 {[%emt 0:01:32]} 26. Rac1 {[%emt 0:02:16]} Rg7 {[%emt 0:07:03]} 27. Rc4 {[%emt 0:00:53]} Rag8 {[%emt 0:00:12]} 28. Rh2 {[%emt 0:00:48]} Rf8 {[%emt 0:03:29]} 29. b3 {[%emt 0:04:52]} Rgf7 {[%emt 0:01:30]} 30. h4 {[%emt 0:01:58]} b5 {[%emt 0:01:16]} 31. Re4 {[%emt 0:00:40]} a5 {[%emt 0:02:08]} 32. h5 {[%emt 0:01:08]} Rh8 {[%emt 0:06:32]} 33. h6 {[%emt 0:16:47]} Rf6 {[%emt 0:01:52]} 34. Rh5+ {[%emt 0:00:35]} Kd6 {[%emt 0:02:46]} 35. Ree5 {[%emt 0:00:37]} Rfxh6 {[%emt 0:00:55]} 36. Rd5+ {[%emt 0:00:10]} Ke7 {[%emt 0:01:37]} 37. Rxh6 {[%emt 0:00:18]} Rxh6 {[%emt 0:00:33]} 38. Rxc5 {[%emt 0:00:01]} c6 {[%emt 0:01:10]} 39. Kxf4 {[%emt 0:00:08]} Rf6+ {[%emt 0:00:34]} 40. Rf5 {[%emt 0:00:17]} Rd6 {[%emt 0:00:25]} 41. Ke4 {[%emt 0:00:14]} Ke6 {[%emt 0:01:40]} 42. g4 {[%emt 0:00:20]} Kd7 {[%emt 0:01:25]} 43. g5 {[%emt 0:01:11]} Rg6 {[%emt 0:02:03]} 44. f4 {[%emt 0:00:13]} Re6+ {[%emt 0:03:10]} 45. Re5 {[%emt 0:00:11]} Rg6 {[%emt 0:28:20]} 46. Kf5 {[%emt 0:00:15]} Rg8 {[%emt 0:00:00]} 47. g6 {[%emt 0:00:09]} Kd6 {[%emt 0:00:00]} 48. Re6+ {[%emt 0:00:42]} Kd7 {[%emt 0:00:00]} 49. Re4 {[%emt 0:00:12]} 1-0

[Event "Israel Youth-ch U12 2025"]
[Site "Rishon Le Zion"]
[Date "2025.04.08"]
[Round "5.1"]
[White "Gurevich, Neria"]
[Black "Sason, Noam"]
[Result "0-1"]
[Annotator "NA RC"]
[ECO "D38"]
[WhiteElo "2048"]
[BlackElo "2075"]
[PlyCount "76"]
[EventDate "2025.04.03"]
[EventType "swiss"]
[EventCountry "ISR"]
[SourceTitle "playchess.com"]
[Source "ChessBase"]
[SourceQuality "1"]
[TimeControl "5400+30"]

1. d4 {[%emt 0:00:03]} Nf6 {[%emt 0:00:05]} 2. c4 {[%emt 0:00:09]} e6 {[%emt 0:00:07]} 3. Nf3 {[%emt 0:00:17]} d5 {[%emt 0:00:07]} 4. Nc3 {[%emt 0:00:26]} Bb4 {[%emt 0:00:15]} 5. cxd5 {[%emt 0:00:34]} exd5 {[%emt 0:00:19]} 6. Bg5 {[%emt 0:00:59]} h6 {[%emt 0:00:19]} 7. Bxf6 {[%emt 0:01:05]} Qxf6 {[%emt 0:00:20]} 8. a3 {[%emt 0:02:07]} Bxc3+ {[%emt 0:00:44]} 9. bxc3 {[%emt 0:00:08]} c5 {[%emt 0:03:30]} 10. e3 {[%emt 0:03:20]} Nc6 {[%emt 0:00:38]} 11. h3 {[%emt 0:07:52]} c4 {[%emt 0:03:28]} 12. Nd2 {[%emt 0:06:39]} Qg6 {[%emt 0:08:27]} 13. Qf3 {[%emt 0:05:44]} Be6 {[%emt 0:04:16]} 14. Rc1 {[%emt 0:10:07]} Na5 {[%emt 0:11:22]} 15. Be2 {[%emt 0:09:14]} Nb3 {[%emt 0:07:29]} 16. Nxb3 {[%emt 0:03:58]} cxb3 {[%emt 0:00:03]} 17. O-O {[%emt 0:00:20]} O-O {[%emt 0:01:47]} 18. Rb1 {[%emt 0:27:50]} Qc2 {[%emt 0:00:55]} 19. Bb5 {[%emt 0:02:59]} Rac8 {[%emt 0:13:34]} 20. Ba4 {[%emt 0:05:37]} Rxc3 {[%emt 0:00:52]} 21. Qd1 {[%emt 0:00:56]} Qxd1 {[%emt 0:06:48]} 22. Rfxd1 {[%emt 0:00:13]} b2 {[%emt 0:00:06]} 23. Rxb2 {[%emt 0:00:42]} Rxa3 {[%emt 0:00:06]} 24. Bc2 {[%emt 0:03:41]} Rc8 {[%emt 0:00:20]} 25. Bb1 {[%emt 0:02:05]} b6 {[%emt 0:03:22]} 26. e4 {[%emt 0:02:09]} dxe4 {[%emt 0:03:46]} 27. Bxe4 {[%emt 0:00:37]} Rb3 {[%emt 0:06:37]} 28. Re2 {[%emt 0:01:27]} a5 {[%emt 0:03:57]} 29. d5 {[%emt 0:02:08]} Bd7 {[%emt 0:00:10]} 30. Bf3 {[%emt 0:00:37]} a4 {[%emt 0:02:19]} 31. Re7 {[%emt 0:00:37]} Rd8 {[%emt 0:00:39]} 32. d6 {[%emt 0:00:26]} a3 {[%emt 0:00:28]} 33. Bd5 {[%emt 0:00:28]} Rb5 {[%emt 0:05:01]} 34. Rxd7 {[%emt 0:01:05]} Rxd7 {[%emt 0:00:06]} 35. Bc6 {[%emt 0:00:10]} Rxd6 {[%emt 0:00:17]} 36. Rxd6 {[%emt 0:00:22]} Rb1+ {[%emt 0:00:43]} 37. Kh2 {[%emt 0:00:16]} a2 {[%emt 0:00:11]} 38. Be4 {[%emt 0:00:13]} g6 {[%emt 0:01:28]} 0-1

[Event "Israel Youth-ch U12 2025"]
[Site "Rishon Le Zion"]
[Date "2025.04.08"]
[Round "5.2"]
[White "Belkovsky, Guy"]
[Black "Zakin, Lior"]
[Result "1-0"]
[Annotator "NA RC"]
[ECO "B30"]
[WhiteElo "2067"]
[BlackElo "1819"]
[PlyCount "53"]
[EventDate "2025.04.03"]
[EventType "swiss"]
[EventCountry "ISR"]
[SourceTitle "playchess.com"]
[Source "ChessBase"]
[SourceQuality "1"]
[TimeControl "5400+30"]

1. e4 {[%emt 0:00:11]} c5 {[%emt 0:00:06]} 2. Nf3 {[%emt 0:00:04]} Nc6 {[%emt 0:00:20]} 3. Bb5 {[%emt 0:00:06]} Nf6 {[%emt 0:00:05]} 4. Bxc6 {[%emt 0:00:34]} bxc6 {[%emt 0:00:21]} 5. e5 {[%emt 0:06:24]} Nd5 {[%emt 0:00:32]} 6. c4 {[%emt 0:01:01]} Nc7 {[%emt 0:00:44]} 7. d4 {[%emt 0:00:07]} cxd4 {[%emt 0:01:23]} 8. Qxd4 {[%emt 0:00:29]} Ne6 {[%emt 0:00:51]} 9. Qh4 {[%emt 0:00:21]} g6 {[%emt 0:02:38]} 10. O-O {[%emt 0:01:14]} Bg7 {[%emt 0:00:40]} 11. Nc3 {[%emt 0:02:26]} Ba6 {[%emt 0:00:35]} 12. Re1 {[%emt 0:08:25]} Rb8 {[%emt 0:01:18]} 13. b3 {[%emt 0:05:28]} f6 {[%emt 0:08:11]} 14. Bh6 {[%emt 0:04:05]} O-O {[%emt 0:00:58]} 15. Bxg7 {[%emt 0:03:05]} Kxg7 {[%emt 0:00:46]} 16. Rad1 {[%emt 0:01:25]} Qc7 {[%emt 0:00:28]} 17. Qg3 {[%emt 0:06:57]} Rb7 {[%emt 0:01:50]} 18. Ne4 {[%emt 0:04:07]} Qa5 {[%emt 0:05:24]} 19. h4 {[%emt 0:07:39]} h6 {[%emt 0:05:58]} 20. h5 {[%emt 0:03:17]} g5 {[%emt 0:00:12]} 21. exf6+ {[%emt 0:01:02]} exf6 {[%emt 0:01:30]} 22. Nd6 {[%emt 0:00:04]} Rc7 {[%emt 0:00:33]} 23. Nd4 {[%emt 0:02:36]} Nf4 {[%emt 0:14:19]} 24. Re7+ {[%emt 0:06:33]} Kh8 {[%emt 0:00:50]} 25. Qe3 {[%emt 0:00:44]} Nxh5 {[%emt 0:07:02]} 26. N4f5 {[%emt 0:04:08]} Qxa2 {[%emt 0:05:48]} 27. Qh3 {[%emt 0:00:33]} 1-0

[Event "Israel Youth-ch U12 2025"]
[Site "Rishon Le Zion"]
[Date "2025.04.08"]
[Round "5.3"]
[White "Brenner, Ehud"]
[Black "Triger, Eitan"]
[Result "1/2-1/2"]
[Annotator "NA RC"]
[ECO "B92"]
[WhiteElo "1696"]
[BlackElo "1978"]
[PlyCount "83"]
[EventDate "2025.04.03"]
[EventType "swiss"]
[EventCountry "ISR"]
[SourceTitle "playchess.com"]
[Source "ChessBase"]
[SourceQuality "1"]
[TimeControl "5400+30"]

1. e4 {[%emt 0:04:14]} c5 {[%emt 0:00:12]} 2. Nf3 {[%emt 0:00:05]} d6 {[%emt 0:00:03]} 3. d4 {[%emt 0:00:05]} cxd4 {[%emt 0:00:05]} 4. Nxd4 {[%emt 0:00:03]} Nf6 {[%emt 0:00:21]} 5. Nc3 {[%emt 0:00:05]} a6 {[%emt 0:00:04]} 6. Be3 {[%emt 0:00:30]} e5 {[%emt 0:01:12]} 7. Nb3 {[%emt 0:00:15]} Be7 {[%emt 0:00:20]} 8. Be2 {[%emt 0:01:38]} Be6 {[%emt 0:02:39]} 9. O-O {[%emt 0:01:37]} O-O {[%emt 0:00:17]} 10. Qd2 {[%emt 0:02:26]} Nbd7 {[%emt 0:00:20]} 11. Rad1 {[%emt 0:00:47]} Rc8 {[%emt 0:01:07]} 12. Kh1 {[%emt 0:02:36]} b5 {[%emt 0:03:35]} 13. a3 {[%emt 0:03:36]} Qc7 {[%emt 0:03:40]} 14. f4 {[%emt 0:05:08]} Nb6 {[%emt 0:04:36]} 15. f5 {[%emt 0:02:54]} Nc4 {[%emt 0:03:48]} 16. Bxc4 {[%emt 0:01:04]} Bxc4 {[%emt 0:00:08]} 17. Rfe1 {[%emt 0:05:23]} Rfd8 {[%emt 0:06:31]} 18. Qf2 {[%emt 0:02:15]} Ng4 {[%emt 0:00:51]} 19. Qf3 {[%emt 0:00:52]} Nxe3 {[%emt 0:00:25]} 20. Qxe3 {[%emt 0:00:03]} a5 {[%emt 0:00:54]} 21. Nd2 {[%emt 0:04:54]} h6 {[%emt 0:08:06]} 22. Nxc4 {[%emt 0:01:24]} Qxc4 {[%emt 0:00:07]} 23. Qe2 {[%emt 0:02:43]} b4 {[%emt 0:00:44]} 24. axb4 {[%emt 0:01:07]} axb4 {[%emt 0:00:16]} 25. Qxc4 {[%emt 0:00:50]} Rxc4 {[%emt 0:00:08]} 26. Nd5 {[%emt 0:00:19]} Bf6 {[%emt 0:02:55]} 27. c3 {[%emt 0:01:41]} bxc3 {[%emt 0:00:31]} 28. bxc3 {[%emt 0:00:01]} Kf8 {[%emt 0:04:07]} 29. Rb1 {[%emt 0:01:44]} Bg5 {[%emt 0:00:12]} 30. Re2 {[%emt 0:00:52]} Ke8 {[%emt 0:01:37]} 31. g3 {[%emt 0:03:17]} Ra8 {[%emt 0:08:33]} 32. Kg2 {[%emt 0:02:27]} Raa4 {[%emt 0:02:30]} 33. Rb4 {[%emt 0:02:50]} Bd8 {[%emt 0:00:20]} 34. Rxa4 {[%emt 0:01:09]} Rxa4 {[%emt 0:00:06]} 35. Kf3 {[%emt 0:00:24]} h5 {[%emt 0:01:55]} 36. h4 {[%emt 0:01:14]} Ra1 {[%emt 0:01:33]} 37. Rb2 {[%emt 0:03:45]} Rf1+ {[%emt 0:01:07]} 38. Kg2 {[%emt 0:00:50]} Re1 {[%emt 0:01:02]} 39. Rb4 {[%emt 0:01:06]} Rc1 {[%emt 0:00:22]} 40. Ra4 {[%emt 0:00:53]} Kd7 {[%emt 0:02:22]} 41. Ra7+ {[%emt 0:00:46]} Ke8 {[%emt 0:00:26]} 42. Ra6 {[%emt 0:01:01]} 1/2-1/2

[Event "Israel Youth-ch U12 2025"]
[Site "Rishon Le Zion"]
[Date "2025.04.08"]
[Round "5.4"]
[White "Jakobs, Yoav"]
[Black "Cohen, Dotan"]
[Result "1-0"]
[Annotator "NA RC"]
[ECO "B47"]
[WhiteElo "1850"]
[BlackElo "1722"]
[PlyCount "59"]
[EventDate "2025.04.03"]
[EventType "swiss"]
[EventCountry "ISR"]
[SourceTitle "playchess.com"]
[Source "ChessBase"]
[SourceQuality "1"]
[TimeControl "5400+30"]

1. e4 {[%emt 0:00:01]} c5 {[%emt 0:00:19]} 2. Nf3 {[%emt 0:00:01]} e6 {[%emt 0:00:18]} 3. d4 {[%emt 0:00:04]} cxd4 {[%emt 0:00:09]} 4. Nxd4 {[%emt 0:00:04]} Nc6 {[%emt 0:00:23]} 5. Nc3 {[%emt 1:32:50]} Qc7 {[%emt 0:00:41]} 6. Ncb5 {[%emt 0:00:00]} Qb8 {[%emt 0:00:41]} 7. Bd3 {[%emt 0:00:00]} a6 {[%emt 0:01:42]} 8. Nxc6 {[%emt 0:00:00]} bxc6 {[%emt 0:00:47]} 9. Nd4 {[%emt 0:00:00]} Nf6 {[%emt 0:06:08]} 10. Qe2 {[%emt 0:00:00]} e5 {[%emt 0:06:53]} 11. Nf3 {[%emt 0:00:00]} Bc5 {[%emt 0:03:59]} 12. Bg5 {[%emt 0:00:00]} Ng4 {[%emt 0:10:20]} 13. Bh4 {[%emt 0:00:00]} O-O {[%emt 0:09:47]} 14. O-O {[%emt 0:00:00]} d5 {[%emt 0:01:34]} 15. exd5 {[%emt 0:00:00]} cxd5 {[%emt 0:00:17]} 16. h3 {[%emt 0:00:00]} e4 {[%emt 0:04:43]} 17. hxg4 {[%emt 0:00:00]} exd3 {[%emt 0:05:46]} 18. Qxd3 {[%emt 0:00:00]} Bxg4 {[%emt 0:04:05]} 19. Ng5 {[%emt 0:00:00]} g6 {[%emt 0:00:52]} 20. Qxd5 {[%emt 0:00:00]} Qb6 {[%emt 0:02:27]} 21. Nxf7 {[%emt 0:00:00]} Rxf7 {[%emt 0:00:24]} 22. Qxa8+ {[%emt 0:00:00]} Kg7 {[%emt 0:01:10]} 23. Qe4 {[%emt 0:00:00]} h5 {[%emt 0:00:47]} 24. Qe5+ {[%emt 0:00:00]} Kh7 {[%emt 0:00:13]} 25. Qe8 {[%emt 0:00:00]} Rf8 {[%emt 0:00:18]} 26. Qe4 {[%emt 0:00:00]} Qxb2 {[%emt 0:01:35]} 27. Rab1 {[%emt 0:00:00]} Qxa2 {[%emt 0:01:10]} 28. Rb7+ {[%emt 0:00:00]} Kh6 {[%emt 0:00:38]} 29. Qe5 {[%emt 0:00:00]} Rf7 {[%emt 0:02:04]} 30. Qh8+ {[%emt 0:00:00]} 1-0

[Event "Israel Youth-ch U12 2025"]
[Site "Rishon Le Zion"]
[Date "2025.04.09"]
[Round "6.1"]
[White "Sason, Noam"]
[Black "Cohen, Israel"]
[Result "1-0"]
[Annotator "RC"]
[ECO "C00"]
[WhiteElo "2075"]
[BlackElo "1879"]
[PlyCount "79"]
[EventDate "2025.04.03"]
[EventType "swiss"]
[EventCountry "ISR"]
[SourceTitle "playchess.com"]
[Source "ChessBase"]
[SourceQuality "1"]
[TimeControl "5400+30"]

1. Nf3 {[%emt 0:00:02]} d5 {[%emt 0:00:53]} 2. g3 {[%emt 0:00:04]} e6 {[%emt 0:00:24]} 3. Bg2 {[%emt 0:00:06]} Nf6 {[%emt 0:00:24]} 4. O-O {[%emt 0:00:06]} Be7 {[%emt 0:00:23]} 5. d3 {[%emt 0:00:06]} O-O {[%emt 0:00:44]} 6. Nbd2 {[%emt 0:00:12]} c5 {[%emt 0:00:38]} 7. e4 {[%emt 0:00:05]} Nc6 {[%emt 0:00:47]} 8. Re1 {[%emt 0:00:26]} b5 {[%emt 0:01:38]} 9. e5 {[%emt 0:00:24]} Nd7 {[%emt 0:00:31]} 10. Nf1 {[%emt 0:00:36]} a5 {[%emt 0:01:03]} 11. h4 {[%emt 0:01:05]} b4 {[%emt 0:01:56]} 12. N1h2 {[%emt 0:03:28]} Ba6 {[%emt 0:04:53]} 13. Ng4 {[%emt 0:02:33]} Rc8 {[%emt 0:07:56]} 14. Bf4 {[%emt 0:07:48]} Na7 {[%emt 0:05:53]} 15. Ng5 {[%emt 0:07:47]} Nb5 {[%emt 0:12:00]} 16. Bh3 {[%emt 0:04:13]} a4 {[%emt 0:10:22]} 17. Ne3 {[%emt 0:20:21]} Bxg5 {[%emt 0:02:51]} 18. hxg5 {[%emt 0:02:44]} g6 {[%emt 0:00:50]} 19. Qg4 {[%emt 0:07:06]} Nb6 {[%emt 0:08:51]} 20. Qh4 {[%emt 0:05:44]} Nd4 {[%emt 0:02:47]} 21. Qh6 {[%emt 0:02:34]} Re8 {[%emt 0:08:26]} 22. Kg2 {[%emt 0:04:49]} Nd7 {[%emt 0:07:14]} 23. Rh1 {[%emt 0:05:13]} Bb7 {[%emt 0:06:38]} 24. c3 {[%emt 0:03:04]} Ne2 {[%emt 0:04:58]} 25. Kf1 {[%emt 0:03:17]} Nxf4 {[%emt 0:00:23]} 26. gxf4 {[%emt 0:01:04]} d4 {[%emt 0:05:02]} 27. Ng4 {[%emt 0:03:13]} Qe7 {[%emt 0:01:01]} 28. Bg2 Bxg2+ {[%emt 0:00:21]} 29. Kxg2 {[%emt 0:01:32]} f5 {[%emt 0:00:30]} 30. gxf6 {[%emt 0:00:51]} Qf7 {[%emt 0:00:14]} 31. Qg5 {[%emt 0:00:54]} Kh8 {[%emt 0:00:28]} 32. Rxh7+ {[%emt 0:01:39]} Qxh7 {[%emt 0:00:22]} 33. Rh1 {[%emt 0:00:07]} Nf8 {[%emt 0:00:17]} 34. f7 {[%emt 0:02:01]} Qxh1+ {[%emt 0:00:27]} 35. Kxh1 {[%emt 0:00:04]} Kg7 {[%emt 0:00:20]} 36. Qf6+ {[%emt 0:00:37]} Kh7 {[%emt 0:00:06]} 37. fxe8=Q {[%emt 0:00:28]} Rxe8 {[%emt 0:00:03]} 38. Qf7+ {[%emt 0:00:13]} Kh8 {[%emt 0:00:07]} 39. Nf6 {[%emt 0:00:09]} Rd8 {[%emt 0:00:15]} 40. Qg8# {[%emt 0:00:06]} 1-0

[Event "Israel Youth-ch U12 2025"]
[Site "Rishon Le Zion"]
[Date "2025.04.09"]
[Round "6.2"]
[White "Hochman, Gur"]
[Black "Belkovsky, Guy"]
[Result "1-0"]
[Annotator "RC"]
[ECO "A08"]
[WhiteElo "1908"]
[BlackElo "2067"]
[PlyCount "71"]
[EventDate "2025.04.03"]
[EventType "swiss"]
[EventCountry "ISR"]
[SourceTitle "playchess.com"]
[Source "ChessBase"]
[SourceQuality "1"]
[TimeControl "5400+30"]

1. e4 {[%emt 0:00:02]} c5 {[%emt 0:00:10]} 2. Nf3 {[%emt 0:00:10]} g6 {[%emt 0:00:05]} 3. d3 {[%emt 1:31:48]} Bg7 {[%emt 0:00:37]} 4. c3 {[%emt 0:00:00]} d5 {[%emt 0:06:41]} 5. Nbd2 {[%emt 0:00:00]} Nc6 {[%emt 0:02:35]} 6. g3 {[%emt 0:00:00]} e6 {[%emt 0:03:56]} 7. Bg2 {[%emt 0:00:00]} Nge7 {[%emt 0:00:05]} 8. O-O {[%emt 0:00:00]} O-O {[%emt 0:01:11]} 9. Re1 {[%emt 0:00:00]} Qc7 {[%emt 0:05:02]} 10. Nf1 {[%emt 0:00:00]} b5 {[%emt 0:09:42]} 11. Qe2 {[%emt 0:00:00]} b4 {[%emt 0:07:38]} 12. e5 {[%emt 0:00:00]} Ba6 {[%emt 0:01:17]} 13. Bf4 {[%emt 0:00:00]} Qa5 {[%emt 0:05:16]} 14. Qd2 {[%emt 0:00:00]} bxc3 {[%emt 0:02:10]} 15. bxc3 {[%emt 0:00:00]} Rab8 {[%emt 0:04:26]} 16. Rab1 {[%emt 0:00:00]} Rxb1 {[%emt 0:02:20]} 17. Rxb1 {[%emt 0:00:00]} Qc7 {[%emt 0:00:04]} 18. Re1 {[%emt 0:00:00]} Rb8 {[%emt 0:03:22]} 19. Bh6 {[%emt 0:00:00]} Nxe5 {[%emt 0:06:25]} 20. Nxe5 {[%emt 0:00:00]} Bxe5 {[%emt 0:00:09]} 21. Rxe5 {[%emt 0:00:00]} Rb1 {[%emt 0:01:38]} 22. Qf4 {[%emt 0:00:00]} Nf5 {[%emt 0:13:14]} 23. Rxf5 {[%emt 0:00:00]} Qxf4 {[%emt 0:00:02]} 24. Rxf4 {[%emt 0:00:00]} Bxd3 {[%emt 0:00:18]} 25. Ra4 {[%emt 0:00:00]} a6 {[%emt 0:00:33]} 26. Ra5 {[%emt 0:00:00]} c4 {[%emt 0:01:07]} 27. Rxa6 {[%emt 0:00:00]} Rb8 {[%emt 0:00:03]} 28. Bf4 {[%emt 0:00:00]} Rd8 {[%emt 0:00:31]} 29. Bg5 {[%emt 0:00:00]} Re8 {[%emt 0:01:10]} 30. Bf6 {[%emt 0:00:00]} h6 {[%emt 0:01:53]} 31. Rd6 {[%emt 0:00:00]} Kf8 {[%emt 0:00:19]} 32. Rd8 {[%emt 0:00:00]} Rxd8 {[%emt 0:00:08]} 33. Bxd8 {[%emt 0:00:00]} Ke8 {[%emt 0:00:30]} 34. Bf6 {[%emt 0:00:00]} Kd7 {[%emt 0:00:05]} 35. Nd2 {[%emt 0:00:00]} Be2 {[%emt 0:02:00]} 36. Bf1 {[%emt 0:00:00]} 1-0

[Event "Israel Youth-ch U12 2025"]
[Site "Rishon Le Zion"]
[Date "2025.04.09"]
[Round "6.3"]
[White "Eshkol, Idan"]
[Black "Jakobs, Yoav"]
[Result "1-0"]
[Annotator "NA COMBH"]
[ECO "A01"]
[WhiteElo "1852"]
[BlackElo "1850"]
[PlyCount "99"]
[EventDate "2025.04.03"]
[EventType "swiss"]
[EventCountry "ISR"]
[SourceTitle "playchess.com"]
[Source "ChessBase"]
[SourceQuality "1"]
[TimeControl "5400+30"]

1. b3 {[%emt 0:00:02]} e5 {[%emt 0:00:05]} 2. Bb2 {[%emt 0:00:03]} Nc6 {[%emt 0:00:05]} 3. e3 {[%emt 0:00:04]} d5 {[%emt 0:00:06]} 4. Bb5 {[%emt 0:00:03]} Nge7 {[%emt 0:00:05]} 5. Bxe5 {[%emt 0:03:01]} a6 {[%emt 0:00:01]} 6. Bxc6+ Nxc6 {[%emt 0:00:02]} 7. Bg3 {[%emt 0:01:06]} h5 {[%emt 0:00:06]} 8. h4 {[%emt 0:02:55]} d4 {[%emt 0:00:19]} 9. Ne2 {[%emt 0:05:44]} Bd6 {[%emt 0:00:21]} 10. Bxd6 {[%emt 0:01:25]} Qxd6 {[%emt 0:00:20]} 11. Nf4 {[%emt 0:06:06]} Bg4 {[%emt 0:06:47]} 12. f3 {[%emt 0:00:18]} O-O-O {[%emt 0:20:04]} 13. fxg4 {[%emt 0:01:31]} dxe3 {[%emt 0:00:02]} 14. O-O {[%emt 0:01:16]} exd2 {[%emt 0:01:37]} 15. Rf2 {[%emt 0:03:20]} hxg4 {[%emt 0:01:48]} 16. Qxg4+ {[%emt 0:02:38]} Kb8 {[%emt 0:00:03]} 17. Nxd2 {[%emt 0:00:43]} Qf6 {[%emt 0:00:35]} 18. Raf1 {[%emt 0:01:32]} Rxh4 {[%emt 0:00:12]} 19. Qg3 {[%emt 0:00:28]} Qh6 {[%emt 0:02:06]} 20. Nh3 {[%emt 0:02:43]} f5 {[%emt 0:06:04]} 21. Nc4 {[%emt 0:03:08]} Rg4 {[%emt 0:17:28]} 22. Qe3 {[%emt 0:02:16]} Qg6 {[%emt 0:00:26]} 23. Nf4 {[%emt 0:04:50]} Qh6 {[%emt 0:01:20]} 24. Ne6 {[%emt 0:00:46]} Rh8 {[%emt 0:04:14]} 25. Qxh6 {[%emt 0:00:39]} Rxh6 {[%emt 0:00:01]} 26. Nf4 {[%emt 0:00:54]} g5 {[%emt 0:00:40]} 27. Nd3 {[%emt 0:00:07]} Nd4 {[%emt 0:00:21]} 28. Nde5 {[%emt 0:01:43]} Re4 {[%emt 0:01:28]} 29. Rd2 {[%emt 0:03:03]} b5 {[%emt 0:01:08]} 30. Na5 {[%emt 0:01:54]} Ka7 {[%emt 0:02:58]} 31. Rxd4 {[%emt 0:07:30]} Rxe5 {[%emt 0:00:02]} 32. b4 {[%emt 0:00:57]} c5 {[%emt 0:01:05]} 33. Rd7+ {[%emt 0:01:23]} Kb8 {[%emt 0:00:01]} 34. a3 {[%emt 0:00:54]} cxb4 {[%emt 0:01:24]} 35. axb4 {[%emt 0:00:04]} Re4 {[%emt 0:00:21]} 36. Rxf5 {[%emt 0:00:17]} Re1+ {[%emt 0:00:16]} 37. Kf2 {[%emt 0:00:04]} Re8 {[%emt 0:00:07]} 38. Rff7 {[%emt 0:00:19]} Rb6 {[%emt 0:00:19]} 39. Rg7 {[%emt 0:01:57]} Rf8+ {[%emt 0:00:38]} 40. Kg3 {[%emt 0:00:04]} Re8 {[%emt 0:00:05]} 41. Rxg5 {[%emt 0:01:34]} Rf8 {[%emt 0:00:16]} 42. Rgg7 {[%emt 0:00:20]} Rc8 {[%emt 0:00:06]} 43. Nb3 {[%emt 0:00:38]} Rc3+ {[%emt 0:00:13]} 44. Kf4 {[%emt 0:00:31]} Rc8 {[%emt 0:00:09]} 45. Nc5 {[%emt 0:00:09]} Ka8 {[%emt 0:00:29]} 46. Ra7+ {[%emt 0:00:18]} Kb8 47. Nxa6+ {[%emt 0:00:20]} Rxa6 {[%emt 0:00:03]} 48. Rxa6 {[%emt 0:00:07]} Rxc2 {[%emt 0:00:07]} 49. Rb6+ {[%emt 0:00:19]} Kc8 {[%emt 0:00:05]} 50. Rxb5 {[%emt 0:00:07]} 1-0